Workbook

Sheet Лист1
H1: Приложение к постановлению Администрации Североуральского городского округа от 27.12.2018 № 1410
H2: Приложение № 2 к муниципальной программе Североуральского городского округа «Развитие жилищно-коммунального хозяйства и транспортного обслуживания населения, повышение энергетической эффективности и охрана окружающей среды в Североуральском городском округе» 2014-2021 годы
A3: План мероприятий
A4: по выполнению муниципальной программы Североуральского городского округа
A5: «Развитие жилищно-коммунального хозяйства и транспортного обслуживания населения,
A6: повышение энергетической эффективности и охрана окружающей среды в Североуральском городском округе» 2014 -2021 годы
A8: № строки | B8: Наименование мероприятия/ Источники расходов на финансирование | C8: Объем расходов на выполнение мероприятия за счет всех источников ресурсного обеспечения, тыс. руб. | L8: Номер строки целевых показателей, на достижение которых направлены мероприятия
C9: Всего | D9: 2014 год | E9: 2015 год | F9: 2016 год | G9: 2017 год | H9: 2018 год | I9: 2019 год | J9: 2020 год | K9: 2021 год
B10: 1 | C10: 2 | D10: 3 | E10: 4 | F10: 5 | G10: 6 | H10: 7 | I10: 8 | J10: 9 | K10: 10 | L10: 11
A11: 1 | B11: ВСЕГО по муниципальной программе, в том числе: | C11: =SUM(C12+C15+C16) -> 1,302,963.44814 | D11: =SUM(D12+D15+D16) -> 283,826.90000 | E11: 348,239.16000 | F11: 216,622.58758 | G11: 122,867.75616 | H11: 94,174.44440 | I11: 105,854.70000 | J11: 65,498.60000 | K11: 65,879.30000 | L11: Х
A12: =SUM(A11+1) -> 2 | B12: местный бюджет, в т.ч.: | C12: =SUM(D12:K12) -> 760,092.93951 | D12: =SUM(D13:D14) -> 92,792.80000 | E12: 126,635.26000 | F12: 117,147.57339 | G12: 96,239.06172 | H12: 92,906.14440 | I12: 104,896.00000 | J12: 64,544.20000 | K12: 64,931.90000
A13: =SUM(A12+1) -> 3 | B13: - местный бюджет | C13: =SUM(D13:K13) -> 759,897.67391 | D13: =SUM(D18+D23) -> 92,792.80000 | E13: 126,635.26000 | F13: 117,147.57339 | G13: 96,043.79612 | H13: 92,906.14440 | I13: 104,896.00000 | J13: 64,544.20000 | K13: 64,931.90000
A14: 4 | B14: - средства заинтересованных лиц | C14: =SUM(D14:K14) -> 195.26560 | D14: =SUM(D24) -> 0.00000 | E14: 0.00000 | F14: 0.00000 | G14: 195.26560 | H14: 0.00000 | I14: 0.00000 | J14: 0.00000 | K14: 0.00000
A15: 5 | B15: областной бюджет | C15: =SUM(D15:K15) -> 339,782.34811 | D15: =SUM(D19+D25) -> 109,216.10000 | E15: 135,104.30000 | F15: 81,477.35126 | G15: 9,855.79685 | H15: 1,268.30000 | I15: 958.70000 | J15: 954.40000 | K15: 947.40000
A16: 6 | B16: федеральный бюджет | C16: =SUM(D16:K16) -> 203,088.16052 | D16: =SUM(D26+D20) -> 81,818.00000 | E16: 86,499.60000 | F16: 17,997.66293 | G16: 16,772.89759 | H16: 0.00000 | I16: 0.00000 | J16: 0.00000 | K16: 0.00000
A17: 7 | B17: Капитальные вложения | C17: =SUM(C18:C20) -> 673,776.14102 | D17: =SUM(D18:D20) -> 232,761.90000 | E17: =SUM(E18:E20) -> 271,669.00000 | F17: 133,207.88470 | G17: 16,137.35632 | H17: 0.00000 | I17: 20,000.00000 | J17: 0.00000 | K17: 0.00000 | L17: Х
A18: 8 | B18: местный бюджет | C18: =SUM(D18:K18) -> 157,171.75724 | D18: =D34+D130+D202+D222+D253+D288+D357+D379 -> 44,727.80000 | E18: =E34+E130+E202+E222+E253+E288+E357+E379 -> 50,411.30000 | F18: =F34+F130+F202+F222+F253+F288+F357+F379 -> 34,707.97051 | G18: =G34+G130+G202+G222+G253+G288+G357+G379+G416 -> 7,324.68673 | H18: =H34+H130+H202+H222+H253+H288+H357+H379 -> 0.00000 | I18: =I34+I130+I202+I222+I253+I288+I357+I379 -> 20,000.00000 | J18: =J34+J130+J202+J222+J253+J288+J357+J379 -> 0.00000 | K18: =K34+K130+K202+K222+K253+K288+K357+K379 -> 0.00000
A19: 9 | B19: областной бюджет | C19: =SUM(D19:K19) -> 329,148.11326 | D19: =D131+D223+D35 -> 106,216.10000 | E19: =E131+E223+E35 -> 134,758.10000 | F19: =F131+F223 -> 80,502.25126 | G19: 7,671.66200 | H19: 0.00000 | I19: 0.00000 | J19: 0.00000 | K19: 0.00000
A20: 10 | B20: федеральный бюджет | C20: =SUM(D20:K20) -> 187,456.27052 | D20: =D224 -> 81,818.00000 | E20: =E224 -> 86,499.60000 | F20: 17,997.66293 | G20: 1,141.00759 | H20: 0.00000 | I20: 0.00000 | J20: 0.00000 | K20: 0.00000
A21: 11 | B21: Прочие нужды | C21: =SUM(C26+C25+C22) -> 629,187.30712 | D21: =SUM(D22:D25) -> 99,130.00000 | E21: =SUM(E22:E25) -> 152,794.12000 | F21: =SUM(F22:F25) -> 165,854.30576 | G21: =SUM(G26+G25+G22) -> 106,730.39984 | H21: =SUM(H26+H25+H22) -> 94,174.44440 | I21: =SUM(I26+I25+I22) -> 85,854.70000 | J21: =SUM(J26+J25+J22) -> 65,498.60000 | K21: =SUM(K26+K25+K22) -> 65,879.30000 | L21: Х
A22: 12 | B22: местный бюджет, в т.ч.: | C22: =SUM(D22:K22) -> 602,921.18227 | D22: =D49+D176+D211+D240+D297+D366+D395+D262+D348 -> 48,065.00000 | E22: =E49+E176+E211+E240+E297+E366+E395+E262+E348 -> 76,223.96000 | F22: =F49+F176+F211+F240+F297+F366+F395+F262+F348 -> 82,439.60288 | G22: =SUM(G23:G24) -> 88,914.37499 | H22: =H49+H176+H211+H240+H297+H366+H395+H262+H348 -> 92,906.14440 | I22: =I49+I176+I211+I240+I297+I366+I395+I262+I348 -> 84,896.00000 | J22: =J49+J176+J211+J240+J297+J366+J395+J262+J348 -> 64,544.20000 | K22: =K49+K176+K211+K240+K297+K366+K395+K262+K348 -> 64,931.90000
A23: 13 | B23: - местный бюджет | C23: =SUM(C49+C176+C211+C240+C262+C297+C348+C366+C395+C432) -> 602,725.91667 | D23: 48,065.00000 | E23: 76,223.96000 | F23: 82,439.60288 | G23: 88,719.10939 | H23: 92,906.14440 | I23: 84,896.00000 | J23: 64,544.20000 | K23: 64,931.90000
A24: 14 | B24: - средства заинтересованных лиц | C24: =SUM(D24:K24) -> 195.26560 | D24: =SUM(D433) -> 0.00000 | E24: 0.00000 | F24: 0.00000 | G24: 195.26560 | H24: 0.00000 | I24: 0.00000 | J24: 0.00000 | K24: 0.00000
A25: 15 | B25: областной бюджет | C25: =SUM(D25:K25) -> 10,634.23485 | D25: =SUM(D177+D394+D50+D263+D434) -> 3,000.00000 | E25: 346.20000 | F25: 975.10000 | G25: 2,184.13485 | H25: 1,268.30000 | I25: 958.70000 | J25: 954.40000 | K25: 947.40000
A26: 16 | B26: федеральный бюджет | C26: =SUM(D26:K26) -> 15,631.89000 | D26: 0.00000 | E26: =E177 -> 0.00000 | F26: =F177 -> 0.00000 | G26: =SUM(G435) -> 15,631.89000 | H26: =SUM(H435) -> 0.00000 | I26: =SUM(I435) -> 0.00000 | J26: =SUM(J435) -> 0.00000 | K26: =SUM(K435) -> 0.00000
A27: 17 | B27: Подпрограмма 1: Комплексное благоустройство территории Североуральского городского округа
A28: 18 | B28: Всего по подпрограмме 1, | C28: =SUM(C30+C31) -> 268,719.69326 | D28: =SUM(D30:D31) -> 25,725.20000 | E28: 29,762.20000 | F28: 47,222.84145 | G28: 35,527.97723 | H28: 38,623.97458 | I28: 31,792.70000 | J28: 30,035.90000 | K28: =SUM(K30:K31) -> 30,028.90000 | L28: Х
A29: 19 | B29: в том числе:
A30: 20 | B30: местный бюджет | C30: =SUM(D30:K30) -> 258,149.69326 | D30: =SUM(D34+D49) -> 24,510.50000 | E30: 26,102.30000 | F30: 46,247.74145 | G30: =SUM(G34+G49) -> 34,564.47723 | H30: 37,669.67458 | I30: 30,850.00000 | J30: 29,102.50000 | K30: 29,102.50000
A31: 21 | B31: областной бюджет | C31: =SUM(D31:K31) -> 10,570.00000 | D31: 1,214.70000 | E31: 3,659.90000 | F31: 975.10000 | G31: 963.50000 | H31: 954.30000 | I31: 942.70000 | J31: 933.40000 | K31: 926.40000
A32: 22 | B32: 1. Капитальные вложения
A33: 23 | B33: Всего по направлению «Капитальные вложения» всего, в том числе | C33: =SUM(D33:K33) -> 15,605.10000 | D33: =SUM(D34+D35) -> 3,536.40000 | E33: =SUM(E34+E35) -> 3,674.70000 | F33: =SUM(F34) -> 4,819.00000 | G33: 3,575.00000 | H33: 0.00000 | I33: 0.00000 | J33: 0.00000 | K33: 0.00000 | L33: Х
A34: 24 | B34: местный бюджет | C34: =SUM(D34:K34) -> 11,076.70000 | D34: =SUM(D45) -> 2,321.70000 | E34: =SUM(E45) -> 361.00000 | F34: =SUM(F45) -> 4,819.00000 | G34: =SUM(G38+G41) -> 3,575.00000 | H34: 0.00000 | I34: 0.00000 | J34: 0.00000 | K34: =SUM(K45) -> 0.00000
A35: 25 | B35: областной бюджет | C35: =SUM(D35:K35) -> 4,528.40000 | D35: =SUM(D42) -> 1,214.70000 | E35: =SUM(E42) -> 3,313.70000 | F35: 0.00000 | G35: =SUM(G42) -> 0.00000 | H35: 0.00000 | I35: 0.00000 | J35: 0.00000 | K35: =SUM(K42) -> 0.00000
A36: 26 | B36: 1.1. Бюджетные инвестиции в объекты капитального строительства
A37: 27 | B37: Бюджетные инвестиции в объекты капитального строительства всего, в том числе | C37: 0.00000 | D37: 0.00000 | E37: 0.00000 | F37: 0.00000 | G37: 0.00000 | H37: 0.00000 | I37: 0.00000 | J37: 0.00000 | K37: 0.00000 | L37: Х
A38: 28 | B38: местный бюджет | C38: 0.00000 | D38: 0.00000 | E38: 0.00000 | F38: 0.00000 | G38: 0.00000 | H38: 0.00000 | I38: 0.00000 | J38: 0.00000 | K38: 0.00000
A39: 29 | B39: 1.2. Иные капитальные вложения
A40: 30 | B40: Всего | C40: =SUM(D40:K40) -> 15,605.10000 | D40: =SUM(D41:D42) -> 3,536.40000 | E40: =SUM(E41:E42) -> 3,674.70000 | F40: 4,819.00000 | G40: 3,575.00000 | H40: 0.00000 | I40: 0.00000 | J40: 0.00000 | K40: =SUM(K41:K42) -> 0.00000 | L40: Х
A41: 31 | B41: местный бюджет | C41: =SUM(D41:K41) -> 11,076.70000 | D41: =SUM(D45) -> 2,321.70000 | E41: 361.00000 | F41: 4,819.00000 | G41: 3,575.00000 | H41: 0.00000 | I41: 0.00000 | J41: 0.00000 | K41: 0.00000
A42: 32 | B42: областной бюджет | C42: =SUM(D42:K42) -> 4,528.40000 | D42: =SUM(D46) -> 1,214.70000 | E42: =SUM(E46) -> 3,313.70000 | F42: 0.00000 | G42: =SUM(G46) -> 0.00000 | H42: 0.00000 | I42: 0.00000 | J42: 0.00000 | K42: =SUM(K46) -> 0.00000
A43: 33 | B43: Мероприятие 1 Благоустройство дворовых территорий Североуральского городского округа
A44: 34 | B44: Всего, из них | C44: =SUM(D44:K44) -> 15,605.10000 | D44: =D45+D46 -> 3,536.40000 | E44: =SUM(E45:E46) -> 3,674.70000 | F44: =SUM(F45) -> 4,819.00000 | G44: 3,575.00000 | H44: 0.00000 | I44: 0.00000 | J44: 0.00000 | K44: 0.00000 | L44: стр. 4
A45: 35 | B45: местный бюджет | C45: =SUM(D45:K45) -> 11,076.70000 | D45: 2,321.70000 | E45: 361.00000 | F45: 4,819.00000 | G45: 3,575.00000 | H45: 0.00000 | I45: 0.00000 | J45: 0.00000 | K45: 0.00000
A46: 36 | B46: областной бюджет | C46: =SUM(D46:K46) -> 4,528.40000 | D46: 1,214.70000 | E46: 3,313.70000 | F46: 0.00000 | G46: 0.00000 | H46: 0.00000 | I46: 0.00000 | J46: 0.00000 | K46: 0.00000
A47: 37 | B47: 3. Прочие нужды
A48: 38 | B48: Всего по направлению «Прочие нужды», всего, в том числе: | C48: =SUM(D48:K48) -> 253,114.59326 | D48: =SUM(D49:D50) -> 22,188.80000 | E48: 26,087.50000 | F48: 42,403.84145 | G48: 31,952.97723 | H48: 38,623.97458 | I48: 31,792.70000 | J48: 30,035.90000 | K48: 30,028.90000 | L48: Х
A49: 39 | B49: местный бюджет | C49: =SUM(D49:K49) -> 247,072.99326 | D49: =SUM(D60+D69+D72+D75+D53+D122) -> 22,188.80000 | E49: 25,741.30000 | F49: 41,428.74145 | G49: 30,989.47723 | H49: 37,669.67458 | I49: 30,850.00000 | J49: 29,102.50000 | K49: 29,102.50000
A50: 40 | B50: областной бюджет | C50: =SUM(D50:K50) -> 6,041.60000 | D50: =SUM(D76) -> 0.00000 | E50: =SUM(E76) -> 346.20000 | F50: =SUM(F123) -> 975.10000 | G50: 963.50000 | H50: 954.30000 | I50: 942.70000 | J50: 933.40000 | K50: 926.40000
A51: 41 | B51: Мероприятие 1 Благоустройство дворовых территорий Североуральского городского округа
A52: 42 | B52: Всего, из них | C52: =SUM(D52:K52) -> 7,134.74500 | D52: =D53+D54 -> 310.90000 | E52: =SUM(E53) -> 436.00000 | F52: 2,681.00000 | G52: 500.00000 | H52: 1,206.84500 | I52: 1,000.00000 | J52: 500.00000 | K52: 500.00000 | L52: стр. 4
A53: 43 | B53: местный бюджет | C53: =SUM(D53:K53) -> 7,134.74500 | D53: 310.90000 | E53: 436.00000 | F53: 2,681.00000 | G53: 500.00000 | H53: 1,206.84500 | I53: 1,000.00000 | J53: 500.00000 | K53: 500.00000
A54: 44 | B54: областной бюджет | C54: =SUM(D54:K54) -> 0.00000 | D54: 0.00000 | E54: 0.00000 | F54: 0.00000 | G54: 0.00000 | H54: 0.00000 | I54: 0.00000 | J54: 0.00000 | K54: 0.00000
A55: 45 | B55: Мероприятие 2 Благоустройство парков и скверов в городе Североуральске
A56: 46 | B56: Всего, из них | C56: =SUM(D56:J56) -> 0.00000 | D56: =D57+D58 -> 0.00000 | E56: =SUM(E57) -> 0.00000 | F56: 0.00000 | G56: 0.00000 | H56: 0.00000 | I56: 0.00000 | J56: 0.00000 | K56: 0.00000 | L56: Х
A57: 47 | B57: местный бюджет | C57: =SUM(D57:J57) -> 0.00000 | D57: 0.00000 | E57: 0.00000 | F57: 0.00000 | G57: 0.00000 | H57: =SUM(G57) -> 0.00000 | I57: =SUM(H57) -> 0.00000 | J57: =SUM(I57) -> 0.00000 | K57: =SUM(J57) -> 0.00000
A58: 48 | B58: Мероприятие 3- Уличное освещение
A59: 49 | B59: Всего, в том числе: | C59: =SUM(D59:K59) -> 129,162.69480 | D59: =SUM(D60) -> 12,001.00000 | E59: 12,600.00000 | F59: 18,150.69080 | G59: 15,955.00000 | H59: 21,456.00400 | I59: 17,000.00000 | J59: =SUM(J60) -> 16,000.00000 | K59: =SUM(K60) -> 16,000.00000 | L59: стр.8. с 2017 года стр. 9
A60: 50 | B60: местный бюджет | C60: =SUM(D60:K60) -> 129,162.69480 | D60: =SUM(D63+D66) -> 12,001.00000 | E60: 12,600.00000 | F60: 18,150.69080 | G60: 15,955.00000 | H60: 21,456.00400 | I60: 17,000.00000 | J60: 16,000.00000 | K60: 16,000.00000
A61: 51 | B61: - Обеспечение бесперебойной подачи электроэнергии
A62: 52 | B62: Всего: | C62: =SUM(D62:K62) -> 95,203.08840 | D62: =SUM(D63) -> 8,644.10000 | E62: =SUM(E63) -> 8,800.00000 | F62: 10,660.69080 | G62: 13,098.29760 | H62: 15,000.00000 | I62: 13,000.00000 | J62: 13,000.00000 | K62: 13,000.00000 | L62: стр.8. с 2017 года стр. 9
A63: 53 | B63: местный бюджет | C63: =SUM(D63:K63) -> 95,203.08840 | D63: 8,644.10000 | E63: 8,800.00000 | F63: 10,660.69080 | G63: 13,098.29760 | H63: 15,000.00000 | I63: 13,000.00000 | J63: 13,000.00000 | K63: 13,000.00000
A64: 54 | B64: - Содержание, ремонт и модернизация сетей уличного освещения
A65: 55 | B65: Всего: | C65: =SUM(D65:K65) -> 33,959.60640 | D65: =SUM(D66) -> 3,356.90000 | E65: =SUM(E66) -> 3,800.00000 | F65: 7,490.00000 | G65: 2,856.70240 | H65: 6,456.00400 | I65: 4,000.00000 | J65: 3,000.00000 | K65: 3,000.00000 | L65: стр.8. с 2017 года стр. 9
A66: 56 | B66: местный бюджет | C66: =SUM(D66:K66) -> 33,959.60640 | D66: 3,356.90000 | E66: 3,800.00000 | F66: 7,490.00000 | G66: 2,856.70240 | H66: 6,456.00400 | I66: 4,000.00000 | J66: 3,000.00000 | K66: 3,000.00000
A67: 57 | B67: Мероприятие 4 - Озеленение
A68: 58 | B68: Всего, из них | C68: =SUM(D68:K68) -> 26,095.84961 | D68: =SUM(D69) -> 2,890.90000 | E68: 2,148.00000 | F68: 3,923.84386 | G68: 3,352.35509 | H68: 3,175.75066 | I68: 4,000.00000 | J68: 3,302.50000 | K68: 3,302.50000 | L68: стр.11
A69: 59 | B69: местный бюджет | C69: =SUM(D69:K69) -> 26,095.84961 | D69: 2,890.90000 | E69: 2,148.00000 | F69: 3,923.84386 | G69: 3,352.35509 | H69: 3,175.75066 | I69: 4,000.00000 | J69: 3,302.50000 | K69: 3,302.50000
A70: 60 | B70: Мероприятие 5 - Организация и содержание мест захоронения
A71: 61 | B71: Всего, из них | C71: =SUM(D71:K71) -> 23,332.76851 | D71: =SUM(D72) -> 2,263.10000 | E71: 2,306.90000 | F71: 3,619.44212 | G71: 2,961.65639 | H71: 3,181.67000 | I71: 3,000.00000 | J71: 3,000.00000 | K71: 3,000.00000 | L71: стр.16
A72: 62 | B72: местный бюджет | C72: =SUM(D72:K72) -> 23,332.76851 | D72: 2,263.10000 | E72: 2,306.90000 | F72: 3,619.44212 | G72: 2,961.65639 | H72: 3,181.67000 | I72: 3,000.00000 | J72: =SUM(I72) -> 3,000.00000 | K72: =SUM(J72) -> 3,000.00000
A73: 63 | B73: Мероприятие 6 - Прочие мероприятия по благоустройству Североуральского городского округа
A74: 64 | B74: Всего, в том числе: | C74: =SUM(D74:K74) -> 60,170.68534 | D74: =SUM(D75:D76) -> 4,722.90000 | E74: =SUM(E75:E76) -> 8,596.60000 | F74: 12,256.96467 | G74: 8,014.41575 | H74: 8,129.80492 | I74: 5,850.00000 | J74: 6,300.00000 | K74: 6,300.00000 | L74: стр.5,5.1.,6,11,13,14,15,17
A75: 65 | B75: местный бюджет | C75: =SUM(D75:K75) -> 59,824.48534 | D75: =SUM(D79+D82+D89+D92+D98+D95+D101+D107+D104+D85+D110+D113) -> 4,722.90000 | E75: =SUM(E79+E82+E89+E92+E98+E95+E101+E107+E104+E85+E110+E113) -> 8,250.40000 | F75: =SUM(F79+F82+F89+F92+F98+F95+F101+F107+F104+F85+F110+F113) -> 12,256.96467 | G75: =SUM(G79+G82+G89+G92+G98+G95+G101+G107+G104+G85+G110+G113) -> 8,014.41575 | H75: =SUM(H79+H82+H89+H92+H98+H95+H101+H107+H104+H85+H110+H113+H116+H119) -> 8,129.80492 | I75: =SUM(I79+I82+I89+I92+I98+I95+I101+I107+I104+I85+I110+I113+I116+I119) -> 5,850.00000 | J75: =SUM(J79+J82+J89+J92+J98+J95+J101+J107+J104+J85+J110+J113+J116+J119) -> 6,300.00000 | K75: =SUM(K79+K82+K89+K92+K98+K95+K101+K107+K104+K85+K110+K113+K116+K119) -> 6,300.00000
A76: 66 | B76: областной бюджет | C76: =SUM(D76:K76) -> 346.20000 | D76: =SUM(D86) -> 0.00000 | E76: =SUM(E86) -> 346.20000 | F76: 0.00000 | G76: 0.00000 | H76: 0.00000 | I76: 0.00000 | J76: 0.00000 | K76: 0.00000
A77: =SUM(A76+1) -> 67 | B77: - Содержание памятников
A78: 68 | B78: Всего: | C78: =SUM(D78:K78) -> 3,624.85888 | D78: =SUM(D79) -> 369.20000 | E78: 404.90000 | F78: 384.30006 | G78: 466.45882 | H78: 500.00000 | I78: 500.00000 | J78: 500.00000 | K78: 500.00000 | L78: стр. 17
A79: 69 | B79: местный бюджет | C79: =SUM(D79:K79) -> 3,624.85888 | D79: 369.20000 | E79: 404.90000 | F79: 384.30006 | G79: 466.45882 | H79: 500.00000 | I79: 500.00000 | J79: 500.00000 | K79: 500.00000
A80: 70 | B80: - Уход за объектами благоустройства
A81: 71 | B81: Всего: | C81: =SUM(C82) -> 9,734.54965 | D81: =SUM(D82) -> 1,098.70000 | E81: =SUM(E82) -> 976.10000 | F81: 999.81380 | G81: 1,147.68593 | H81: 1,312.24992 | I81: 1,400.00000 | J81: 1,400.00000 | K81: 1,400.00000 | L81: стр. 5
A82: 72 | B82: местный бюджет | C82: =SUM(D82:K82) -> 9,734.54965 | D82: 1,098.70000 | E82: 976.10000 | F82: 999.81380 | G82: 1,147.68593 | H82: 1,312.24992 | I82: 1,400.00000 | J82: 1,400.00000 | K82: 1,400.00000
A83: 73 | B83: - Регулирование численности безнадзорных животных
A84: 74 | B84: Всего: | C84: =SUM(D84:J84) -> 1,677.20000 | D84: =SUM(D85:D86) -> 500.00000 | E84: =SUM(E85:E86) -> 1,177.20000 | F84: 0.00000 | G84: 0.00000 | H84: 0.00000 | I84: 0.00000 | J84: 0.00000 | K84: =SUM(K85:K86) -> 0.00000 | L84: стр. 13
A85: 75 | B85: местный бюджет | C85: =SUM(D85:J85) -> 1,331.00000 | D85: 500.00000 | E85: 831.00000 | F85: 0.00000 | G85: 0.00000 | H85: 0.00000 | I85: =SUM(H85) -> 0.00000 | J85: =SUM(I85) -> 0.00000 | K85: =SUM(J85) -> 0.00000
A86: 76 | B86: областной бюджет | C86: =SUM(D86:K86) -> 346.20000 | E86: 346.20000
A87: 77 | B87: - Содержание биоямы (скотомогильник)
A88: 78 | B88: Всего: | C88: =SUM(C89) -> 717.18218 | D88: =SUM(D89) -> 116.10000 | E88: =SUM(E89) -> 69.30000 | F88: 77.02912 | G88: 74.75306 | H88: 80.00000 | I88: 100.00000 | J88: 100.00000 | K88: 100.00000 | L88: стр.15
A89: 79 | B89: местный бюджет | C89: =SUM(D89:K89) -> 717.18218 | D89: 116.10000 | E89: 69.30000 | F89: 77.02912 | G89: 74.75306 | H89: 80.00000 | I89: 100.00000 | J89: 100.00000 | K89: 100.00000
A90: 80 | B90: - Обустройство и эксплуатация новогодних городков
A91: 81 | B91: Всего: | C91: =SUM(C92) -> 24,394.70000 | D91: =SUM(D92) -> 1,685.50000 | E91: =SUM(E92) -> 2,669.20000 | F91: 2,900.00000 | G91: 3,120.00000 | H91: 3,820.00000 | I91: 3,100.00000 | J91: 3,550.00000 | K91: 3,550.00000 | L91: стр.5
A92: 82 | B92: местный бюджет | C92: =SUM(D92:K92) -> 24,394.70000 | D92: 1,685.50000 | E92: 2,669.20000 | F92: 2,900.00000 | G92: 3,120.00000 | H92: 3,820.00000 | I92: 3,100.00000 | J92: 3,550.00000 | K92: 3,550.00000
A93: 83 | B93: - Приобретение декоративного освещения для улиц города Североуральска, ремонт светодиодных консолей
A94: 84 | B94: Всего: | C94: =SUM(C95) -> 4,692.40000 | D94: =SUM(D95) -> 773.40000 | E94: =SUM(E95) -> 1,701.00000 | F94: 0.00000 | G94: 560.00000 | H94: 158.00000 | I94: 500.00000 | J94: 500.00000 | K94: 500.00000 | L94: стр.5
A95: 85 | B95: местный бюджет | C95: =SUM(D95:K95) -> 4,692.40000 | D95: 773.40000 | E95: 1,701.00000 | F95: 0.00000 | G95: 560.00000 | H95: 158.00000 | I95: 500.00000 | J95: =SUM(I95) -> 500.00000 | K95: =SUM(J95) -> 500.00000
A96: 86 | B96: - Акарицидная обработка общественных мест
A97: 87 | B97: Всего: | C97: =SUM(C98) -> 882.28990 | D97: =SUM(D98) -> 92.00000 | E97: =SUM(E98) -> 99.90000 | F97: 99.98990 | G97: 45.00000 | H97: 95.40000 | I97: 150.00000 | J97: 150.00000 | K97: 150.00000 | L97: стр.14
A98: 88 | B98: местный бюджет | C98: =SUM(D98:K98) -> 882.28990 | D98: 92.00000 | E98: 99.90000 | F98: 99.98990 | G98: 45.00000 | H98: 95.40000 | I98: 150.00000 | J98: 150.00000 | K98: 150.00000
A99: 89 | B99: - Приобретение грунта плодородного (земли садовой)
A100: 90 | B100: Всего: | C100: =SUM(C101) -> 637.00000 | D100: =SUM(D101) -> 88.00000 | E100: =SUM(E101) -> 0.00000 | F100: 150.00000 | G100: 99.00000 | H100: 0.00000 | I100: 100.00000 | J100: 100.00000 | K100: 100.00000 | L100: стр.11
A101: 91 | B101: местный бюджет | C101: =SUM(D101:K101) -> 637.00000 | D101: 88.00000 | E101: 0.00000 | F101: 150.00000 | G101: 99.00000 | H101: 0.00000 | I101: 100.00000 | J101: 100.00000 | K101: 100.00000
A102: 92 | B102: - Приобретение и установка металлических урн и скамеек
A103: 93 | B103: Всего: | C103: =SUM(D103:K103) -> 1,710.25802 | D103: =SUM(D104) -> 0.00000 | E103: =SUM(E104) -> 0.00000 | F103: 1,710.25802 | G103: 0.00000 | H103: 0.00000 | I103: 0.00000 | J103: 0.00000 | K103: 0.00000 | L103: стр.6
A104: 94 | B104: местный бюджет | C104: =SUM(D104:K104) -> 1,710.25802 | D104: 0.00000 | E104: 0.00000 | F104: 1,710.25802 | G104: 0.00000 | H104: 0.00000 | I104: 0.00000 | J104: =SUM(I104) -> 0.00000 | K104: =SUM(J104) -> 0.00000
A105: 95 | B105: - Благоустройство мест общего пользования территории Североуральского городского округа
A106: 96 | B106: Всего: | C106: =SUM(D106:K106) -> 9,561.04171 | D106: =SUM(D107) -> 0.00000 | E106: =SUM(E107) -> 1,499.00000 | F106: 5,935.57377 | G106: 2,093.46794 | H106: 33.00000 | I106: 0.00000 | J106: 0.00000 | K106: 0.00000 | L106: стр.5
A107: 97 | B107: местный бюджет | C107: =SUM(D107:K107) -> 9,561.04171 | D107: 0.00000 | E107: 1,499.00000 | F107: 5,935.57377 | G107: 2,093.46794 | H107: 33.00000 | I107: 0.00000 | J107: =SUM(I107) -> 0.00000 | K107: =SUM(J107) -> 0.00000
A108: 98 | B108: - Обустройство источника нецентрализованного водоснабжения в п. Сосьва
A109: 99 | B109: Всего: | C109: =SUM(D109:K109) -> 58.05000 | D109: =SUM(D110) -> 0.00000 | E109: =SUM(E110) -> 0.00000 | F109: 0.00000 | G109: 58.05000 | H109: 0.00000 | I109: 0.00000 | J109: 0.00000 | K109: 0.00000 | L109: стр.5
A110: 100 | B110: местный бюджет | C110: =SUM(D110:K110) -> 58.05000 | D110: 0.00000 | E110: 0.00000 | F110: 0.00000 | G110: 58.05000 | H110: 0.00000 | I110: 0.00000 | J110: =SUM(I110) -> 0.00000 | K110: =SUM(J110) -> 0.00000
A111: 101 | B111: - Разработка проектно-сметной документации и проведение ценовой экспертизы скверов, парков и аллей Североуральского городского округа
A112: 102 | B112: Всего: | C112: =SUM(D112:K112) -> 733.15500 | D112: =SUM(D113) -> 0.00000 | E112: =SUM(E113) -> 0.00000 | F112: 0.00000 | G112: 350.00000 | H112: 383.15500 | I112: 0.00000 | J112: 0.00000 | K112: 0.00000 | L112: стр.5.1.
A113: 103 | B113: местный бюджет | C113: =SUM(D113:K113) -> 733.15500 | D113: 0.00000 | E113: 0.00000 | F113: 0.00000 | G113: 350.00000 | H113: 383.15500 | I113: 0.00000 | J113: =SUM(I113) -> 0.00000 | K113: =SUM(J113) -> 0.00000
A114: 104 | B114: - Приобретение и установка остановочных комплексов на территории Североуральского городского округа
A115: 105 | B115: Всего: | C115: =SUM(D115:K115) -> 1,500.00000 | D115: =SUM(D116) -> 0.00000 | E115: =SUM(E116) -> 0.00000 | F115: 0.00000 | G115: 0.00000 | H115: 1,500.00000 | I115: 0.00000 | J115: 0.00000 | K115: 0.00000 | L115: стр.5.2.
A116: 106 | B116: местный бюджет | C116: =SUM(D116:K116) -> 1,500.00000 | D116: 0.00000 | E116: 0.00000 | F116: 0.00000 | G116: 0.00000 | H116: 1,500.00000 | I116: 0.00000 | J116: =SUM(I116) -> 0.00000 | K116: =SUM(J116) -> 0.00000
A117: 107 | B117: - Изготовление и установка информационных стендов у здания Администрации Североуральского городского округа
A118: 108 | B118: Всего: | C118: =SUM(D118:K118) -> 248.00000 | D118: =SUM(D119) -> 0.00000 | E118: =SUM(E119) -> 0.00000 | F118: 0.00000 | G118: 0.00000 | H118: 248.00000 | I118: 0.00000 | J118: 0.00000 | K118: 0.00000 | L118: стр.5.3.
A119: 109 | B119: местный бюджет | C119: =SUM(D119:K119) -> 248.00000 | D119: 0.00000 | E119: 0.00000 | F119: 0.00000 | G119: 0.00000 | H119: 248.00000 | I119: 0.00000 | J119: =SUM(I119) -> 0.00000 | K119: =SUM(J119) -> 0.00000
A120: 110 | B120: Мероприятие 7 - Регулирование численности безнадзорных животных
A121: 111 | B121: Всего, из них | C121: =SUM(D121:K121) -> 7,217.85000 | D121: =SUM(D122:D123) -> 0.00000 | E121: =SUM(E122:E123) -> 0.00000 | F121: 1771.90000 | G121: 1169.55000 | H121: 1473.90000 | I121: 942.70000 | J121: 933.40000 | K121: 926.40000 | L121: стр.13
A122: 112 | B122: местный бюджет | C122: =SUM(D122:K122) -> 1,522.45000 | D122: 0.00000 | E122: 0.00000 | F122: 796.80000 | G122: 206.05000 | H122: 519.60000 | I122: 0.00000 | J122: 0.00000 | K122: 0.00000
A123: 113 | B123: областной бюджет | C123: =SUM(D123:K123) -> 5,695.40000 | E123: 0.00000 | F123: 975.10000 | G123: 963.50000 | H123: 954.30000 | I123: 942.70000 | J123: 933.40000 | K123: 926.40000
A124: 114 | B124: Подпрограмма 2: Муниципальная программа по энергосбережению и повышению энергетической эффективности объектов Североуральского городского округа
A125: 115 | B125: Всего по подпрограмме 2, в том числе | C125: =SUM(D125:K125) -> 107,531.30978 | D125: =SUM(D126:D127) -> 9,165.50000 | E125: 2,961.60000 | F125: 15,455.86781 | G125: 16,404.34197 | H125: 20,418.50000 | I125: 41,625.50000 | J125: 750.00000 | K125: 750.00000 | L125: Х
A126: 116 | B126: местный бюджет | C126: =SUM(D126:K126) -> 101,186.90978 | D126: =SUM(D130+D176) -> 2,821.10000 | E126: =SUM(E130+E176) -> 2,961.60000 | F126: =F130+F176 -> 15,455.86781 | G126: =SUM(G130+G176) -> 16,404.34197 | H126: 20,418.50000 | I126: 41,625.50000 | J126: 750.00000 | K126: 750.00000
A127: 117 | B127: областной бюджет | C127: =SUM(D127:K127) -> 6,344.40000 | D127: =SUM(D131+D177) -> 6,344.40000 | E127: =SUM(E131+E177) -> 0.00000 | F127: =SUM(F131+F177) -> 0.00000 | G127: 0.00000 | H127: 0.00000 | I127: 0.00000 | J127: 0.00000 | K127: 0.00000
A128: 118 | B128: 1. Капитальные вложения
A129: 119 | B129: Всего по направлению «Капитальные вложения», всего, в том числе | C129: =SUM(D129:K129) -> 42,520.55117 | D129: =SUM(D130:D131) -> 4,173.60000 | E129: 1,420.00000 | F129: 14,122.60920 | G129: 2,804.34197 | H129: 0.00000 | I129: 20,000.00000 | J129: 0.00000 | K129: 0.00000 | L129: Х
A130: 120 | B130: местный бюджет | C130: =SUM(D130:K130) -> 39,176.15117 | D130: =SUM(D164+D134) -> 829.20000 | E130: 1,420.00000 | F130: 14,122.60920 | G130: 2,804.34197 | H130: 0.00000 | I130: 20,000.00000 | J130: 0.00000 | K130: 0.00000
A131: 121 | B131: областной бюджет | C131: =SUM(D131:K131) -> 3,344.40000 | D131: 3,344.40000 | E131: 0.00000 | F131: 0.00000 | G131: 0.00000 | H131: 0.00000 | I131: 0.00000 | J131: 0.00000 | K131: 0.00000
A132: 122 | B132: 1.1. Бюджетные инвестиции в объекты капитального строительства
A133: 123 | B133: Бюджетные инвестиции в объекты капитального строительства всего, в том числе | C133: =SUM(D133:J133) -> 36,926.95117 | D133: =SUM(D134:D135) -> 0.00000 | E133: =SUM(E134:E135) -> 0.00000 | F133: 14,122.60920 | G133: 2,804.34197 | H133: 0.00000 | I133: 20,000.00000 | J133: 0.00000 | K133: 0.00000 | L133: Х
A134: 124 | B134: местный бюджет | C134: =SUM(D134:K134) -> 36,926.95117 | D134: =SUM(D138+D150+D153+D157+D160) -> 0.00000 | E134: 0.00000 | F134: 14,122.60920 | G134: 2,804.34197 | H134: 0.00000 | I134: 20,000.00000 | J134: 0.00000 | K134: 0.00000
A135: 125 | B135: областной бюджет | C135: =SUM(D135:J135) -> 0.00000 | D135: =SUM(D139+D154+D161) -> 0.00000 | E135: =SUM(E139+E154+E161) -> 0.00000 | F135: 0.00000 | G135: 0.00000 | H135: 0.00000 | I135: 0.00000 | J135: 0.00000 | K135: 0.00000
A136: 126 | B136: Мероприятие 3 - Закупка и установка осветительного оборудования с заменой неэффективного на энергосберегающее, в том числе замена ламп накаливания на энергосберегающие, строительство, модернизация сетей уличного освещения, проектно-сметные работы, экспертиза проектно-сметной документации
A137: 127 | B137: Всего, из них | C137: =SUM(D137:K137) -> 14,458.20066 | D137: =SUM(D138:D139) -> 0.00000 | E137: =SUM(E138:E139) -> 0.00000 | F137: 12,330.00000 | G137: 2,128.20066 | H137: 0.00000 | I137: 0.00000 | J137: 0.00000 | K137: 0.00000 | L137: стр.28
A138: 128 | B138: местный бюджет | C138: =SUM(D138:K138) -> 14,458.20066 | D138: 0.00000 | E138: 0.00000 | F138: =SUM(F146+F142) -> 12,330.00000 | G138: =SUM(G146+G142) -> 2,128.20066 | H138: 0.00000 | I138: =SUM(H138) -> 0.00000 | J138: 0.00000 | K138: 0.00000
A139: 129 | B139: областной бюджет | C139: =SUM(D139:J139) -> 0.00000 | D139: 0.00000 | E139: 0.00000 | F139: 0.00000 | G139: 0.00000 | H139: 0.00000 | I139: 0.00000 | J139: 0.00000 | K139: 0.00000
A140: 130 | B140: - Разработка ПСД на строительство сетей уличного освещения микрорайона Южный
A141: =SUM(A140+1) -> 131 | B141: Всего: | C141: =SUM(D141:K141) -> 283.20066 | D141: =SUM(D142) -> 0.00000 | E141: 0.00000 | F141: 283.20066 | G141: 0.00000 | H141: 0.00000 | I141: 0.00000 | J141: 0.00000 | K141: 0.00000 | L141: стр.28
A142: 132 | B142: местный бюджет | C142: =SUM(D142:K142) -> 283.20066 | D142: 0.00000 | E142: 0.00000 | F142: 283.20066 | G142: 0.00000 | H142: 0.00000 | I142: =SUM(H142) -> 0.00000 | J142: =SUM(I142) -> 0.00000 | K142: =SUM(J142) -> 0.00000
A143: 133 | B143: областной бюджет | C143: =SUM(D143:J143) -> 0.00000 | D143: 0.00000 | E143: 0.00000 | F143: 0.00000 | G143: 0.00000 | H143: 0.00000 | I143: 0.00000 | J143: 0.00000 | K143: 0.00000
A144: 134 | B144: - Строительство сетей уличного освещения микрорайона Южный
A145: 135 | B145: Всего: | C145: =SUM(D145:K145) -> 14,175.00000 | D145: =SUM(D146) -> 0.00000 | E145: 0.00000 | F145: 12,046.79934 | G145: 2,128.20066 | H145: 0.00000 | I145: 0.00000 | J145: 0.00000 | K145: 0.00000 | L145: стр.28
A146: 136 | B146: местный бюджет | C146: =SUM(D146:K146) -> 14,175.00000 | D146: 0.00000 | E146: 0.00000 | F146: 12,046.79934 | G146: 2,128.20066 | H146: 0.00000 | I146: =SUM(H146) -> 0.00000 | J146: =SUM(I146) -> 0.00000 | K146: =SUM(J146) -> 0.00000
A147: 137 | B147: областной бюджет | C147: =SUM(D147:J147) -> 0.00000 | D147: 0.00000 | E147: 0.00000 | F147: 0.00000 | G147: 0.00000 | H147: 0.00000 | I147: 0.00000 | J147: 0.00000 | K147: 0.00000
A148: 138 | B148: Мероприятие 5 - Разработка, экспертиза проектно-сметной документации на строительство сетей водоснабжения в Североуральском городском округе
A149: 139 | B149: Всего, из них | C149: =SUM(D149:K149) -> 20,000.00000 | D149: =SUM(D150) -> 0.00000 | E149: =SUM(E150) -> 0.00000 | F149: 0.00000 | G149: 0.00000 | H149: 0.00000 | I149: 20,000.00000 | J149: 0.00000 | K149: 0.00000 | L149: стр.31, введен с 2016 года
A150: 140 | B150: местный бюджет | C150: =SUM(D150:K150) -> 20,000.00000 | D150: 0.00000 | E150: 0.00000 | F150: 0.00000 | G150: 0.00000 | H150: =SUM(G150) -> 0.00000 | I150: 20,000.00000 | J150: 0.00000 | K150: 0.00000
A151: 141 | B151: Мероприятие 6 - Строительство сетей водоснабжения в Североуральском городском округе
A152: 142 | B152: Всего, из них | C152: =SUM(D152:K152) -> 0.00000 | D152: =SUM(D153:D154) -> 0.00000 | E152: =SUM(E153:E154) -> 0.00000 | F152: 0.00000 | G152: 0.00000 | H152: 0.00000 | I152: 0.00000 | J152: 0.00000 | K152: 0.00000 | L152: стр.32, введен с 2016 года
A153: 143 | B153: местный бюджет | C153: =SUM(D153:K153) -> 0.00000 | D153: 0.00000 | E153: 0.00000 | F153: 0.00000 | G153: 0.00000 | H153: =SUM(G153) -> 0.00000 | I153: 0.00000 | J153: 0.00000 | K153: 0.00000
A154: 144 | B154: областной бюджет | C154: =SUM(D154:J154) -> 0.00000 | D154: 0.00000 | E154: 0.00000 | F154: 0.00000 | G154: 0.00000 | H154: 0.00000 | I154: 0.00000 | J154: 0.00000 | K154: 0.00000
A155: 145 | B155: Мероприятие 7 - Разработка, экспертиза проектно-сметной документации на строительство котельных в Североуральском городском округе
A156: 146 | B156: Всего, из них | C156: =SUM(D156:K156) -> 2,468.75051 | D156: =SUM(D157) -> 0.00000 | E156: =SUM(E157) -> 0.00000 | F156: 1,792.60920 | G156: 676.14131 | H156: 0.00000 | I156: 0.00000 | J156: 0.00000 | K156: 0.00000 | L156: стр.33
A157: 147 | B157: местный бюджет | C157: =SUM(D157:K157) -> 2,468.75051 | D157: 0.00000 | E157: 0.00000 | F157: 1,792.60920 | G157: 676.14131 | H157: 0.00000 | I157: 0.00000 | J157: 0.00000 | K157: 0.00000
A158: 148 | B158: Мероприятие 8 - Строительство котельных в Североуральском городском округе
A159: 149 | B159: Всего, из них | C159: =SUM(D159:K159) -> 0.00000 | D159: =SUM(D160:D161) -> 0.00000 | E159: =SUM(E160:E161) -> 0.00000 | F159: 0.00000 | G159: 0.00000 | H159: 0.00000 | I159: 0.00000 | J159: 0.00000 | K159: 0.00000 | L159: стр.34, введен с 2016 года
A160: 150 | B160: местный бюджет | C160: =SUM(D160:K160) -> 0.00000 | D160: 0.00000 | E160: 0.00000 | F160: 0.00000 | G160: 0.00000 | H160: 0.00000 | I160: 0.00000 | J160: 0.00000 | K160: 0.00000
A161: 151 | B161: областной бюджет | C161: =SUM(D161:J161) -> 0.00000 | D161: 0.00000 | E161: 0.00000 | F161: 0.00000 | G161: 0.00000 | H161: =SUM(G161) -> 0.00000 | I161: =SUM(H161) -> 0.00000 | J161: =SUM(I161) -> 0.00000 | K161: =SUM(J161) -> 0.00000
A162: 152 | B162: 1.2. Иные капитальные вложения
A163: 153 | B163: Всего, в том числе | C163: =SUM(D163:K163) -> 5,593.60000 | D163: =SUM(D164:D165) -> 4,173.60000 | E163: 1,420.00000 | F163: 0.00000 | G163: 0.00000 | H163: 0.00000 | I163: 0.00000 | J163: 0.00000 | K163: 0.00000 | L163: Х
A164: 154 | B164: местный бюджет | C164: =SUM(D164:K164) -> 2,249.20000 | D164: =SUM(D172+D168) -> 829.20000 | E164: =SUM(E172) -> 1,420.00000 | F164: 0.00000 | G164: 0.00000 | H164: 0.00000 | I164: 0.00000 | J164: 0.00000 | K164: 0.00000
A165: 155 | B165: областной бюджет | C165: =SUM(D165:K165) -> 3,344.40000 | D165: =SUM(D173+D169) -> 3,344.40000 | E165: =SUM(E173) -> 0.00000 | F165: 0.00000 | G165: 0.00000 | H165: 0.00000 | I165: 0.00000 | J165: 0.00000 | K165: 0.00000
A166: 156 | B166: Мероприятие 1- Реконструкция, модернизация водопроводных сетей, сетей системы водоотведения с заменой (без замены) оборудования с более высоким КПД, установка регулируемого привода, реконструкция тепловых сетей, в том числе тепловых пунктов, котельных, капитальный ремонт систем коммунального хозяйства
A167: 157 | B167: Всего, в том числе: | C167: =SUM(D167:K167) -> 3,037.40000 | D167: =SUM(D168:D169) -> 3,037.40000 | E167: 0.00000 | F167: 0.00000 | G167: 0.00000 | H167: 0.00000 | I167: 0.00000 | J167: 0.00000 | K167: =SUM(K168:K169) -> 0.00000 | L167: стр.29
A168: 158 | B168: местный бюджет | C168: =SUM(D168:K168) -> 281.00000 | D168: 281.00000 | E168: 0.00000 | F168: 0.00000 | G168: 0.00000 | H168: 0.00000 | I168: 0.00000 | J168: 0.00000 | K168: 0.00000
A169: 159 | B169: областной бюджет | C169: =SUM(D169:K169) -> 2,756.40000 | D169: 2,756.40000 | E169: 0.00000 | F169: 0.00000 | G169: 0.00000 | H169: =SUM(G169) -> 0.00000 | I169: =SUM(H169) -> 0.00000 | J169: =SUM(I169) -> 0.00000 | K169: =SUM(J169) -> 0.00000
A170: 160 | B170: Мероприятие 3 - Закупка и установка осветительного оборудования с заменой неэффективного на энергосберегающее, в том числе замена ламп накаливания на энергосберегающие, строительство, модернизация сетей уличного освещения, проектно-сметные работы, экспертиза проектно-сметной документации
A171: 161 | B171: Всего, из них | C171: =SUM(C172:C173) -> 2,556.20000 | D171: =SUM(D172:D173) -> 1,136.20000 | E171: =SUM(E172:E173) -> 1,420.00000 | F171: 0.00000 | G171: 0.00000 | H171: 0.00000 | I171: 0.00000 | J171: 0.00000 | K171: =SUM(K172:K173) -> 0.00000 | L171: стр.28
A172: 162 | B172: местный бюджет | C172: =SUM(D172:K172) -> 1,968.20000 | D172: 548.20000 | E172: 1,420.00000 | F172: 0.00000 | G172: 0.00000 | H172: 0.00000 | I172: =SUM(H172) -> 0.00000 | J172: 0.00000 | K172: =SUM(J172) -> 0.00000
A173: 163 | B173: областной бюджет | C173: =SUM(D173:K173) -> 588.00000 | D173: 588.00000 | E173: 0.00000 | F173: 0.00000 | G173: 0.00000 | H173: 0.00000 | I173: 0.00000 | J173: 0.00000 | K173: =SUM(J173) -> 0.00000
A174: 164 | B174: 3. Прочие нужды
A175: 165 | B175: Всего по направлению «Прочие нужды», всего, в том числе: | C175: =SUM(C176:C177) -> 65,010.75861 | D175: =SUM(D176:D177) -> 4,991.90000 | E175: =SUM(E176:E177) -> 1,541.60000 | F175: 1,333.25861 | G175: 13,600.00000 | H175: 20,418.50000 | I175: 21,625.50000 | J175: 750.00000 | K175: 750.00000 | L175: Х
A176: 166 | B176: местный бюджет | C176: =SUM(D176:K176) -> 62,010.75861 | D176: =SUM(D184+D189+D193+D196+D180) -> 1,991.90000 | E176: 1,541.60000 | F176: 1,333.25861 | G176: 13,600.00000 | H176: 20,418.50000 | I176: 21,625.50000 | J176: 750.00000 | K176: 750.00000
A177: 167 | B177: областной бюджет | C177: =SUM(D177:K177) -> 3,000.00000 | D177: =SUM(D185+D190+D181) -> 3,000.00000 | E177: 0.00000 | F177: 0.00000 | G177: 0.00000 | H177: 0.00000 | I177: 0.00000 | J177: 0.00000 | K177: 0.00000
A178: 168 | B178: Мероприятие 1- Реконструкция, модернизация водопроводных сетей, сетей системы водоотведения с заменой (без замены) оборудования с более высоким КПД, установка регулируемого привода, реконструкция тепловых сетей, в том числе тепловых пунктов, котельных, капитальный ремонт систем коммунального хозяйства
A179: 169 | B179: Всего, в том числе: | C179: =SUM(D179:K179) -> 52,551.00000 | D179: =SUM(D180:D181) -> 0.00000 | E179: 0.00000 | F179: 0.00000 | G179: 13,000.00000 | H179: 19,775.50000 | I179: 19,775.50000 | J179: 0.00000 | K179: =SUM(K180:K181) -> 0.00000 | L179: стр.29
A180: 170 | B180: местный бюджет | C180: =SUM(D180:K180) -> 52,551.00000 | D180: 0.00000 | E180: 0.00000 | F180: 0.00000 | G180: 13,000.00000 | H180: 19,775.50000 | I180: 19,775.50000 | J180: 0.00000 | K180: 0.00000
A181: 171 | B181: областной бюджет | C181: =SUM(D181:J181) -> 0.00000 | D181: 0.00000 | E181: 0.00000 | F181: 0.00000 | G181: 0.00000 | H181: =SUM(G181) -> 0.00000 | I181: =SUM(H181) -> 0.00000 | J181: =SUM(I181) -> 0.00000 | K181: =SUM(J181) -> 0.00000
A182: 172 | B182: Мероприятие 2 - Оснащение зданий (строений, сооружений), находящихся в муниципальной собственности, многоквартирных жилых домов, жилых помещений, квартир приборами учета используемых энергетических ресурсов, в том числе разработка проектно-сметной документации
A183: 173 | B183: Всего, из них | C183: =SUM(C184:C186) -> 8,777.55861 | D183: =SUM(D184:D185) -> 4,200.00000 | E183: 1,100.00000 | F183: 1,250.40861 | G183: 427.15000 | H183: 400.00000 | I183: 400.00000 | J183: 500.00000 | K183: 500.00000 | L183: стр.22,23,24,25,26
A184: 174 | B184: местный бюджет | C184: =SUM(D184:K184) -> 5,777.55861 | D184: 1,200.00000 | E184: 1,100.00000 | F184: 1,250.40861 | G184: 427.15000 | H184: 400.00000 | I184: 400.00000 | J184: 500.00000 | K184: 500.00000
A185: 175 | B185: областной бюджет | C185: =SUM(D185:K185) -> 3,000.00000 | D185: 3,000.00000 | E185: =SUM(E186) -> 0.00000 | F185: 0.00000 | G185: 0.00000 | H185: 0.00000 | I185: 0.00000 | J185: 0.00000 | K185: 0.00000
A186: 176 | B186: федеральный бюджет | C186: =SUM(D186:J186) -> 0.00000 | D186: 0.00000 | E186: 0.00000 | F186: 0.00000 | G186: =SUM(F186) -> 0.00000 | H186: =SUM(G186) -> 0.00000 | I186: =SUM(H186) -> 0.00000 | J186: =SUM(I186) -> 0.00000 | K186: =SUM(J186) -> 0.00000
A187: 177 | B187: Мероприятие 3 - Закупка и установка осветительного оборудования с заменой неэффективного на энергосберегающее, в том числе замена ламп накаливания на энергосберегающие, строительство, модернизация сетей уличного освещения, проектно-сметные работы, экспертиза проектно-сметной документации
A188: 178 | B188: Всего, из них | C188: =SUM(D188:K188) -> 1,791.90000 | D188: =SUM(D189:D190) -> 411.90000 | E188: =SUM(E189:E190) -> 180.00000 | F188: 0.00000 | G188: 0.00000 | H188: 0.00000 | I188: 1,200.00000 | J188: 0.00000 | K188: =SUM(K189:K190) -> 0.00000 | L188: стр.28
A189: 179 | B189: местный бюджет | C189: =SUM(D189:K189) -> 1,791.90000 | D189: 411.90000 | E189: 180.00000 | F189: 0.00000 | G189: 0.00000 | H189: 0.00000 | I189: 1,200.00000 | J189: 0.00000 | K189: 0.00000
A190: 180 | B190: областной бюджет | C190: =SUM(D190:J190) -> 0.00000 | D190: 0.00000 | E190: 0.00000 | F190: 0.00000 | G190: 0.00000 | H190: =SUM(G190) -> 0.00000 | I190: =SUM(H190) -> 0.00000 | J190: =SUM(I190) -> 0.00000 | K190: =SUM(J190) -> 0.00000
A191: 181 | B191: Мероприятие 4- Разработка схемы водоснабжения Североуральского городского округа
A192: 182 | B192: Всего, из них | C192: =SUM(D192:K192) -> 380.00000 | D192: =SUM(D193) -> 380.00000 | E192: =SUM(E193) -> 0.00000 | F192: 0.00000 | G192: 0.00000 | H192: 0.00000 | I192: 0.00000 | J192: 0.00000 | K192: 0.00000 | L192: стр.30
A193: 183 | B193: местный бюджет | C193: =SUM(D193:K193) -> 380.00000 | D193: 380.00000 | E193: 0.00000 | F193: 0.00000 | G193: =SUM(F193) -> 0.00000 | H193: =SUM(G193) -> 0.00000 | I193: =SUM(H193) -> 0.00000 | J193: =SUM(I193) -> 0.00000 | K193: =SUM(J193) -> 0.00000
A194: 184 | B194: Мероприятие 9- Прочие мероприятия в области энергосбережения (разработка технических заданий, топливно-энерготехнического баланса и т.п.)
A195: 185 | B195: Всего, из них | C195: =SUM(D195:K195) -> 1,510.30000 | D195: =SUM(D196) -> 0.00000 | E195: =SUM(E196) -> 261.60000 | F195: 82.85000 | G195: 172.85000 | H195: 243.00000 | I195: 250.00000 | J195: 250.00000 | K195: 250.00000 | L195: стр.35, с 2016 года стр. 36
A196: 186 | B196: местный бюджет | C196: =SUM(D196:K196) -> 1,510.30000 | D196: 0.00000 | E196: 261.60000 | F196: 82.85000 | G196: 172.85000 | H196: 243.00000 | I196: 250.00000 | J196: =SUM(I196) -> 250.00000 | K196: =SUM(J196) -> 250.00000
A197: 187 | B197: Подпрограмма 3: Развитие лесного хозяйства на территории Североуральского городского округа
A198: 188 | B198: Всего по подпрограмме 1, всего, в том числе | C198: =SUM(C199:C199) -> 3,040.19000 | D198: =SUM(D199) -> 774.10000 | E198: =SUM(E199) -> 881.10000 | F198: 0.00000 | G198: 0.00000 | H198: 184.99000 | I198: 200.00000 | J198: 500.00000 | K198: 500.00000 | L198: Х
A199: 189 | B199: местный бюджет | C199: =SUM(D199:K199) -> 3,040.19000 | D199: =SUM(D211) -> 774.10000 | E199: =SUM(E211) -> 881.10000 | F199: 0.00000 | G199: 0.00000 | H199: 184.99000 | I199: 200.00000 | J199: 500.00000 | K199: 500.00000
A200: 190 | B200: 1. Капитальные вложения
A201: =SUM(A200+1) -> 191 | B201: Всего по направлению «Капитальные вложения», всего, в том числе | C201: 0.00000 | D201: 0.00000 | E201: 0.00000 | F201: 0.00000 | G201: 0.00000 | H201: 0.00000 | I201: 0.00000 | J201: 0.00000 | K201: 0.00000 | L201: Х
... 268 more rows

Sheet Лист2

Sheet Лист3
